Cogmind - Beta 11 X8 @@@ ROGUE MODE // 2021.10.25 @ 01:41:45 Player: Runia Result: Self-destructed Performance ------------- Evolutions (8) 4000 Regions Visited (27) 5400 Robots Destroyed (280) 1400 Value Destroyed (11776) 11776 Prototype IDs (80) 1600 Alien Tech Used (4) 800 Bonus (-1864) -1864 TOTAL SCORE: 23112 Bonus ------- High Alert Combat Kills 701 Follower Combat Kills 1054 Network Hubs Disabled 400 Aligned with FarCom 300 Met Data Miner 300 Met Zhirov 300 Built Enhanced Grunts 300 A7 Reached Mainframe 300 Met R17 at Cetus 500 Found Hidden Lab 3000 Pursued by Intercept 1000 Friendly Fire -10019 Cogmind --------- Core Integrity 143/1450 Matter 295/300 Energy 94/100 System Corruption 21% Temperature Cool (0) Movement Core (50) Location -2/Research Parts ------- > --- POWER (3) -------- (None) > --- PROPULSION (6) --- (None) > --- UTILITY (12) ----- Long-range Sensor Array Advanced Terrain Scan Processor Advanced Target Analyzer Advanced Target Analyzer Deep Network Scanner > --- WEAPON (3) ------- (None) > --- INVENTORY (5) ---- YI-UF0's Bottomless Matter Pit (1500) Peak State ------------ > --- POWER ------------ Reinforced Fission Core Particle Reactor Quantum Reactor > --- PROPULSION ------- Enhanced Flexi-carbon Leg Advanced Myomer Leg Advanced Myomer Leg Advanced Myomer Leg Enhanced Biometal Leg > --- UTILITY ---------- High-capacity Storage Unit Long-range Terrain Scanner Advanced Terrain Scan Processor Improved Transmission Jammer Improved Utility Shielding Improved Heavy Armor Plating Experimental Powered Armor Experimental Hacking Suite System Mapper Quantum Router > --- WEAPON ----------- Neutron Cannon Longsword +1 Lance > --- INVENTORY -------- Enhanced Biometal Leg Enhanced Biometal Leg Experimental Power Amplifier Experimental Energy Well YI-UF0's Bottomless Matter Pit Microactuators Microactuators Improved Actuator Array Experimental Phase Shifter Improved Weapon Shielding Centrium Medium Armor Plating Centrium Medium Armor Plating Advanced Force Field Deep Network Scanner Transdimensional Reconstructor Smartbomb Launcher [Rating: 163] Favorites ----------- Power Quantum Reactor Engine Improved Deuterium Engine Power Core Reinforced Fission Core Reactor Quantum Reactor Propulsion Enhanced Flexi-carbon Leg Treads Armored Treads Leg Enhanced Flexi-carbon Leg Wheel Armored Wheel Flight Unit Cooled Impulse Thruster Utility High-capacity Storage Unit Device Improved Transmission Jammer Storage High-capacity Storage Unit Processor Armor Integrity Analyzer Hackware System Mapper Protection Centrium Medium Armor Plating Weapon Longsword +1 Energy Gun Beam Rifle Energy Cannon Neutron Cannon Ballistic Gun Heavy Assault Rifle Ballistic Cannon Advanced Assault Cannon Launcher Missile Launcher Special Weapon Improved Plasma Cutter Slashing Weapon Longsword +1 Piercing Weapon Lance Special Melee Weapon Advanced Datajack Build | -11 -10 -10 -10 -9 -8 -7 -7 -7 -7 -6 -6 -6 -6 -6 -6 -6 -6 -5 -5 -5 -5 -4 -4 -4 -4 -3 -2 ------- Run | Scr Mat Min Exi Min Mat Fac Low Low Dat Pro Fac Was Fac Ext Cet Arc Hub Fac Upp Upp Zhi Pro Fac Arm Lab Res Res Slots Evolved 16 | . . . . . 4 2 . . . . 2 . . . . . . 2 . . . . 2 . . 2 2 Power 1 | . . . . . . . . . . . . . . . . . . 1 . . . . . . . . . Propulsion 4 | . . . . . 2 . . . . . 1 . . . . . . . . . . . . . . . 1 Utility 10 | . . . . . 2 2 . . . . 1 . . . . . . 1 . . . . 1 . . 2 1 Weapon 1 | . . . . . . . . . . . . . . . . . . . . . . . 1 . . . . Parts Attached 467 | . 9 4 4 9 25 24 4 13 13 15 9 8 22 11 21 11 37 59 5 21 10 12 13 19 14 52 23 Power 22 | . 1 . . . 1 2 . . 2 . . 2 . . 1 . 1 3 . . . . 1 . . 7 1 Engine 6 | . 1 . . . 1 2 . . 1 . . . . . . . . . . . . . . . . 1 . Core 2 | . . . . . . . . . . . . . . . . . . 2 . . . . . . . . . Reactor 14 | . . . . . . . . . 1 . . 2 . . 1 . 1 1 . . . . 1 . . 6 1 Propulsion 69 | . 2 . 1 2 5 5 . . 2 7 1 1 6 . 2 1 3 10 . . 3 . 3 . . 4 11 Treads 6 | . . . . . 3 1 . . . 1 . . . . . . . . . . . . . . . . 1 Leg 49 | . 2 . . 2 2 . . . 2 6 1 1 6 . 2 1 3 10 . . 3 . 3 . . 3 2 Wheel 9 | . . . 1 . . 4 . . . . . . . . . . . . . . . . . . . 1 3 Hover . | . . . . . . . . . . . . . . . . . . . . . . . . . . . . Flight 5 | . . . . . . . . . . . . . . . . . . . . . . . . . . . 5 Utility 209 | . . 1 1 3 6 11 . 7 7 4 6 5 11 3 10 4 24 22 3 10 5 4 5 9 9 32 7 Device 93 | . . 1 . . . 4 . 2 1 . 4 1 5 1 3 2 9 14 2 6 4 1 2 6 3 18 4 Storage 12 | . . . 1 1 1 . . . 1 . 1 1 . . . . . 3 . . . . . . 1 2 . Processor 9 | . . . . . 1 . . . . . 1 . 1 . . . 1 . . 1 . 1 1 . . 2 . Hackware 9 | . . . . . 1 2 . . . . . . 1 1 . . . . . . . . . . . 3 1 Protection 86 | . . . . 2 3 5 . 5 5 4 . 3 4 1 7 2 14 5 1 3 1 2 2 3 5 7 2 Artifact . | . . . . . . . . . . . . . . . . . . . . . . . . . . . . Weapon 167 | . 6 3 2 4 13 6 4 6 2 4 2 . 5 8 8 6 9 24 2 11 2 8 4 10 5 9 4 Energy Gun 18 | . 5 2 . . 1 . . . . . . . . . . . . . . . . . . 2 2 4 2 Energy Cannon 33 | . . . . . 2 . . 1 . . 1 . . . 3 4 1 7 1 3 . 3 1 4 1 . 1 Ballistic Gun 7 | . . . 1 . 5 . . . . . . . . . . 1 . . . . . . . . . . . Ballistic Cannon 2 | . . . . . . 1 . . . . 1 . . . . . . . . . . . . . . . . Launcher 42 | . 1 1 . 2 3 3 2 3 1 2 . . 2 3 4 . 1 4 . 2 1 1 1 1 1 3 . Special Weapon 1 | . . . . . . . . . . . . . . . . . . 1 . . . . . . . . . Impact Weapon . | . . . . . . . . . . . . . . . . . . . . . . . . . . . . Slashing Weapon 46 | . . . 1 2 2 2 2 2 1 2 . . 2 5 1 1 6 6 . 3 1 2 1 . 1 2 1 Piercing Weapon 16 | . . . . . . . . . . . . . . . . . . 6 1 3 . 2 1 3 . . . Special Melee Weapon 2 | . . . . . . . . . . . . . 1 . . . 1 . . . . . . . . . . Unidentified Prototypes 30 | . . . . 1 . . . 1 2 . . . . 1 2 1 3 2 . . 3 . . 1 6 6 1 Corrupted Parts 3 | . . . . . . . . . . . . . . . . . 3 . . . . . . . . . . System Corruption 19 | . . . . . . . . . . . . . . . . . 19 . . . . . . . . . . Parts Lost 70 | . 2 1 . . . . . . 5 8 1 . . 2 . . 1 1 . 2 . . 1 . . 25 21 Power 11 | . 1 . . . . . . . 1 . . . . . . . . . . . . . . . . 8 1 Propulsion 19 | . . . . . . . . . 1 2 1 . . . . . 1 1 . . . . . . . 6 7 Utility 25 | . . . . . . . . . 3 4 . . . 1 . . . . . . . . . . . 9 8 Weapon 15 | . 1 1 . . . . . . . 2 . . . 1 . . . . . 2 . . 1 . . 2 5 Highest Loss Streak 21 | . 2 1 . . . . . . 5 8 1 . . 2 . . 1 1 . 1 . . 1 . . 9 21 Average Slot Usage (%) 93 | . 83 87 100 100 90 90 84 90 91 94 95 90 98 99 99 99 96 97 97 93 93 93 90 90 90 85 68 Engine 2 | . 13 14 14 14 9 7 7 7 5 . . . . . . . . . . . . . . . . . . Core 1 | . . . . . . . . . . . . . . . . . . 4 5 5 5 5 5 5 5 . . Reactor 3 | . . . . . . . . . 1 7 6 6 6 6 6 6 6 4 5 5 5 5 4 5 5 7 . Treads 3 | . . . . . 15 15 15 15 15 12 5 . . . . . . . . . . . . . . . . Leg 21 | . 28 28 25 14 11 1 . . 4 16 26 26 32 33 33 33 32 28 29 29 29 29 25 26 25 17 3 Wheel 2 | . . . 2 14 9 12 7 7 4 . . . . . . . . . . . . . . . . . 3 Device 8 | . . 3 14 . . 5 7 6 2 7 9 8 9 7 . 1 7 13 15 13 23 19 9 7 6 13 15 Storage 8 | . 14 14 14 14 9 7 7 7 7 7 12 14 14 13 13 13 7 4 5 5 5 5 5 5 7 5 7 Processor 3 | . . . . . 8 7 7 7 4 . . . . . . . . . . . . 1 9 10 9 6 12 Hackware 4 | . . . . . . 5 7 5 . . . . . 4 6 6 6 5 5 5 5 5 5 5 5 10 7 Protection 15 | . . . . 13 8 9 7 15 27 26 20 20 21 20 25 24 19 20 18 18 5 6 9 12 11 9 . Energy Gun 2 | . 25 18 19 14 9 3 . . . . . . . . . . . . . . . . . 1 1 . 1 Energy Cannon 2 | . . . . . 2 . . . . . 5 6 6 . 2 1 4 2 2 3 . 3 4 3 . 2 . Ballistic Cannon 1 | . . . . . . 3 7 7 7 5 . . . . . . . . . . . . . . . . . Launcher 1 | . . 8 . 7 . . 5 5 . 5 . . . 1 3 . . . . . . . . 3 . . . Slashing Weapon 4 | . . . 8 6 3 6 1 1 7 1 6 6 5 10 6 10 7 4 2 1 4 1 3 . 4 3 . Piercing Weapon 1 | . . . . . . . . . . . . . . . . . . 2 2 1 4 4 4 3 5 4 3 Naked Turns . | . . . . . . . . . . . . . . . . . . . . . . . . . . . . Heaviest Build 156 | 14 16 17 32 35 70 95 79 90 94 95 89 100 102 98 98 97 115 136 126 132 134 137 127 133 126 156 40 Greatest Support 150 | 20 20 20 20 12 12 28 28 28 56 84 99 99 122 122 122 122 122 144 132 132 148 148 150 148 148 148 60 Greatest Overweight (x) 6 | . . . 2 2 5 6 2 3 3 1 4 1 1 . . . . 1 . . . . 1 . . 2 3 Average Overweight (x) . | . . . . 2 3 2 2 2 2 . . . . . . . . . . . . . . . . . 1 Largest Inventory Capacity 20 | 8 8 8 15 15 20 20 20 20 20 20 20 20 20 20 20 20 20 20 20 20 20 20 20 20 20 20 15 Average Capacity 19 | 8 8 8 9 15 17 20 20 20 20 20 20 20 20 20 20 20 20 19 20 20 20 20 20 20 20 19 14 Most Carried 20 | 5 8 8 8 10 20 20 20 20 20 20 20 20 20 20 20 20 20 20 20 20 20 20 20 20 20 20 14 Average Carried 18 | 4 6 7 7 8 14 19 19 19 19 18 18 19 19 19 19 19 19 19 19 19 19 19 19 19 19 13 10 Final Capacity 20 | 8 8 8 15 15 20 20 20 20 20 20 20 20 20 20 20 20 20 20 20 20 20 20 20 20 20 15 5 Final Carried 20 | 4 7 8 7 10 20 20 20 20 20 16 20 20 20 18 20 20 20 20 20 20 20 20 20 20 20 7 1 Class Distribution -------------------- 44% | Scavenger-Mutant 25% | Mutant 10% | Scavenger-Assassin 9% | Hacker-Assassin 9% | Hacker-Mutant Dominant Class ---------------- Mutant | -10/Materials Mutant | -10/Mines Scavenger-Mutant | -10/Exiles Mutant | -9/Mines Mutant | -8/Materials Mutant | -7/Factory Mutant | -7/Lower Caves Mutant | -7/Lower Caves Mutant | -7/Data Miner Scavenger-Mutant | -6/Proximity Caves Scavenger-Mutant | -6/Factory Scavenger-Mutant | -6/Waste Scavenger-Mutant | -6/Factory Scavenger-Mutant | -6/Extension Scavenger-Mutant | -6/Cetus Scavenger-Mutant | -6/Archives Scavenger-Mutant | -6/Hub_04(d) Scavenger-Assassin | -5/Factory Scavenger-Mutant | -5/Upper Caves Scavenger-Mutant | -5/Upper Caves Scavenger-Mutant | -5/Zhirov Hacker-Mutant | -4/Proximity Caves Hacker-Assassin | -4/Factory Hacker-Mutant | -4/Armory Scavenger-Mutant | -4/Lab Hacker-Mutant | -3/Research Hacker-Assassin | -2/Research Resources | -11 -10 -10 -10 -9 -8 -7 -7 -7 -7 -6 -6 -6 -6 -6 -6 -6 -6 -5 -5 -5 -5 -4 -4 -4 -4 -3 -2 ----------- Run | Scr Mat Min Exi Min Mat Fac Low Low Dat Pro Fac Was Fac Ext Cet Arc Hub Fac Upp Upp Zhi Pro Fac Arm Lab Res Res Matter Collected 10065 | 190 112 46 . 414 383 650 231 1030 384 557 234 857 225 304 315 290 412 1187 96 453 114 136 207 340 224 650 24 Remotely . | . . . . . . . . . . . . . . . . . . . . . . . . . . . . Salvage Created 13400 | . 437 60 . 484 752 704 107 250 384 521 114 151 556 1123 963 563 1332 1475 332 761 382 89 109 401 72 1174 104 Parts 612 | . 34 5 . 19 45 33 3 12 19 25 4 4 21 44 44 22 58 57 9 35 3 8 7 26 9 63 3 Haulers Intercepted 5 | . 1 . . . 1 . . . . . . . . . . . 1 . . 1 . . . . . 1 . Recyclers Shooed 9 | . . . . . 1 1 . . . . . . 1 2 . . . 3 . . . . . . . 1 . Parts Field Recycled . | . . . . . . . . . . . . . . . . . . . . . . . . . . . . Retrieved Matter . | . . . . . . . . . . . . . . . . . . . . . . . . . . . . Parts Self-Destructed 61 | . . . . . . . 3 10 . 21 . . . . . . . . 3 15 2 7 . . . . . Prevented 24 | . . . . . . . . . . . . . . . . . . . 8 16 . . . . . . . Kills | -11 -10 -10 -10 -9 -8 -7 -7 -7 -7 -6 -6 -6 -6 -6 -6 -6 -6 -5 -5 -5 -5 -4 -4 -4 -4 -3 -2 ------- Run | Scr Mat Min Exi Min Mat Fac Low Low Dat Pro Fac Was Fac Ext Cet Arc Hub Fac Upp Upp Zhi Pro Fac Arm Lab Res Res Combat Hostiles Destroyed 188 | . 12 1 . 8 14 7 2 9 4 19 . . 4 9 11 1 17 18 5 12 . 6 2 8 1 17 1 Melee 69 | . . . . . 1 4 . . 4 4 . . 4 3 . . 12 12 1 1 . 2 2 4 1 13 1 Guns 12 | . 9 . . 1 2 . . . . . . . . . . . . . . . . . . . . . . Cannons 11 | . . . . . 2 . . 1 . 1 . . . . . 1 1 1 1 3 . . . . . . . AOE 84 | . 3 1 . 7 9 3 2 8 . 14 . . . 6 7 . 4 3 . 5 . 4 . 4 . 4 . Classes Destroyed 17 | . 7 1 . 1 1 2 1 1 . . . . . 1 . . 1 . . 1 . . . . . . . Worker 15 | . 1 . . . 2 1 . . . . . . . . . . 3 3 . . . . . . . 4 1 Builder 10 | . 1 . . . 1 . . . . . . . . . . . 2 2 . . . . . . . 4 . Tunneler 1 | . . . . . . 1 . . . . . . . . . . . . . . . . . . . . . Hauler 5 | . 1 . . . 1 . . . . . . . . . . . 1 . . 1 . . . . . 1 . Recycler 20 | . 1 . . 2 1 6 . . . . 1 . 2 2 . . 1 4 . . . . . . . . . Minesweeper 1 | . . . . . . . 1 . . . . . . . . . . . . . . . . . . . . Operator 16 | . . . . . 1 1 . . . . . . 1 1 . 9 1 1 . . . . . 1 . . . Watcher 9 | . 1 . . . 1 1 . . . . . . . 1 1 . 3 . . . . . . . . 1 . Swarmer 32 | . 6 . . . . 3 . . . 6 . . . . 4 . 5 4 . . . 4 . . . . . Grunt 71 | . 6 . . 7 11 1 2 7 . 8 . . . 5 2 . 1 4 3 5 . . . 4 . 5 . Brawler 3 | . . . . . . . . 1 . 1 . . . . . . 1 . . . . . . . . . . Duelist 5 | . . . . 1 . . . 1 . 1 . . . . 1 . . . 1 . . . . . . . . Protector 1 | . . . . . . . . . . . . . . . . . 1 . . . . . . . . . . Sentry 22 | . . 1 . . 3 2 . . . 2 . . 2 2 . 1 4 2 . . . . . 1 . 2 . Specialist 3 | . . . . . . . . . . . . . . . . . . . . 3 . . . . . . . Hunter 11 | . . . . . . . . . . . . . . 2 . . . 1 1 3 . . . . . 4 . Programmer 26 | . . . . . . 1 . . . 1 . . 2 . . . 2 7 . 1 . 2 2 3 . 5 . Cetus Guard 4 | . . . . . . . . . . . . . . . 4 . . . . . . . . . . . . Enhanced Grunt 7 | . . . . . . . . . 4 . . . . . 1 2 . . . . . . . . . . . Lightning 3 | . . . . . . . . . . . . . . . . . 3 . . . . . . . . . . Tracker 2 | . . . . . . . . . . . . . . . . . . . . . . . . . . 1 1 Packrat 1 | . . . . . . . . . . . . . . . . . . . . 1 . . . . . . . Thug 3 | . . . . . . . . . . . . . . 3 . . . . . . . . . . . . . Savage 2 | . . . . . . . . . . . . . . . 2 . . . . . . . . . . . . Guerrilla 3 | . . . . . . . . . . . . . . 3 . . . . . . . . . . . . . Best Kill Streak 13 | . 13 1 . 5 13 3 3 3 2 11 1 . 2 6 7 4 10 5 4 5 . 4 2 4 1 8 1 Combat Bots Only 11 | . 9 1 . 5 11 3 2 3 2 11 . . 1 5 7 1 9 4 4 5 . 4 2 4 1 4 1 Max Kills in Single Turn 7 | . 4 1 . 2 3 1 2 3 1 3 1 . 1 6 5 2 7 2 1 2 . 3 1 2 1 2 1 Gunslinging 1 | . 1 . . . . . . . . . . . . . . . . . . . . . . . . . . Exploded 5 | . 2 1 . 2 2 1 2 3 . 3 . . . 3 5 . 3 1 . 2 . 3 . 2 . 2 . Melee 1 | . . . . . 1 1 . . 1 1 . . 1 1 . . 1 1 1 1 . 1 1 1 1 1 1 Uniques/NPCs Destroyed 5 | . . . . 1 . . . . 1 . . . . . 2 . . . . . . . . . 1 . . YI-UF0 (-9/Mines) Data Miner (-7/Data Miner) Revision 17 (-6/Cetus) A7 (-6/Cetus) A5 (-4/Lab) Combat | -11 -10 -10 -10 -9 -8 -7 -7 -7 -7 -6 -6 -6 -6 -6 -6 -6 -6 -5 -5 -5 -5 -4 -4 -4 -4 -3 -2 -------- Run | Scr Mat Min Exi Min Mat Fac Low Low Dat Pro Fac Was Fac Ext Cet Arc Hub Fac Upp Upp Zhi Pro Fac Arm Lab Res Res Damage Taken 20968 | . 374 180 . 113 332 443 86 423 1184 1453 62 . 192 693 363 102 1317 2005 288 910 . 384 419 486 164 5451 3544 Core 2943 | . 72 14 . 22 52 . 13 39 74 156 14 . 11 61 62 50 116 178 28 65 . 13 19 7 21 549 1307 Absorbed by Shields 1459 | . . . . . . . . . . . . . . . 124 . . 281 67 . . 108 . . . 864 15 Core Remaining (%) 72 | 100 . . . 56 90 . . . . 59 . . . . . . 63 . . . . 71 . . 88 53 . Volleys Fired 374 | . 25 5 . 12 29 5 1 16 . 21 . . 27 12 25 48 26 42 5 18 . 20 9 11 1 13 3 Largest 2 | . 2 2 . 1 2 1 1 2 . 1 . . 1 1 1 1 1 1 1 1 . 1 1 1 1 1 1 Hottest 125 | . 90 90 . 56 125 48 36 117 . 48 . . 90 43 88 90 90 90 70 90 . 90 90 90 81 90 65 Shots Fired 421 | . 47 7 . 12 43 5 1 17 . 21 . . 27 12 25 50 26 42 5 19 . 21 11 12 2 13 3 Gun 121 | . 44 7 . 2 26 . . . . . . . . . . 32 . . . . . . . . 2 5 3 Cannon 178 | . . . . . 5 2 . 7 . 2 . . 27 . 10 18 24 31 1 13 . 18 11 7 . 2 . Launcher 122 | . 3 . . 10 12 3 1 10 . 19 . . . 12 15 . 2 11 4 6 . 3 . 5 . 6 . Special . | . . . . . . . . . . . . . . . . . . . . . . . . . . . . Kinetic 54 | . . . . . 12 2 . 6 . 2 . . . . . 32 . . . . . . . . . . . Thermal 146 | . 2 . . 2 14 . . . . . . . 27 . . 7 24 25 . 2 . 18 11 7 2 2 3 Explosive 88 | . 3 . . 10 12 3 1 10 . 19 . . . 6 . . . 6 . 4 . 3 . 5 . 6 . Electromagnetic 133 | . 42 7 . . 5 . . 1 . . . . . 6 25 11 2 11 5 13 . . . . . 5 . Robot Hit Streak 12 | . 9 10 . 6 12 2 3 8 . 7 . . 11 1 9 6 5 11 7 11 . 12 . . 3 4 1 Robot Miss Streak 5 | . 4 1 . 3 3 . . 1 . 2 . . 4 1 5 2 3 1 . 1 . 1 . . . 1 1 Penetration Max 1 | . . . . . . . . . . . . . . . . . . 1 . . . . . . . . . Secondary Targets 2 | . 2 . . . . . . . . . . . . . . . . . . . . . . . . . . Max Gunslinging Chain 1 | . 1 . . . . . . . . . . . . . . . . . . . . . . . . . . Shots Hit Robots 633 | . 34 7 . 13 26 37 4 13 35 24 5 4 32 13 22 37 88 62 4 17 14 11 4 15 11 90 11 Core Hits 471 | . 26 3 . 16 38 17 2 22 14 35 1 2 7 33 28 18 50 37 6 18 6 8 3 21 5 49 6 Critical Kills 1 | . . . . . . . . . . . . . . . . 1 . . . . . . . . . . . Critical Parts Destroyed . | . . . . . . . . . . . . . . . . . . . . . . . . . . . . Critical Strikes 31 | . . . . . 3 3 . . 1 . . . 1 . . 3 6 3 . 4 . . . 1 . 6 . Burn 3 | . . . . . 3 . . . . . . . . . . . . . . . . . . . . . . Destroy 1 | . . . . . . . . . . . . . . . . 1 . . . . . . . . . . . Corrupt 7 | . . . . . . . . . . . . . . . . 2 . 1 . 4 . . . . . . . Sever 16 | . . . . . . 3 . . 1 . . . 1 . . . 6 2 . . . . . . . 3 . Puncture 4 | . . . . . . . . . . . . . . . . . . . . . . . . 1 . 3 . Melee Attacks 719 | . . . . 7 19 75 6 2 46 9 13 4 60 15 10 9 103 100 1 6 15 12 25 23 14 115 30 Impact . | . . . . . . . . . . . . . . . . . . . . . . . . . . . . Slashing 564 | . . . . 7 19 75 6 2 46 9 13 4 58 15 10 9 103 69 . 1 4 3 3 . 13 88 7 Piercing 153 | . . . . . . . . . . . . . . . . . . 31 1 5 11 9 22 23 1 27 23 Sneak Attacks 73 | . . . . 6 4 10 . 1 1 3 1 . 6 5 10 7 3 5 . 1 . . . . . 8 2 Combat Hostiles 1 | . . . . . . . . . . . . . . . . . 1 . . . . . . . . . . Follow-up Attacks 31 | . . . . . . . . . . . . . . . 1 1 2 7 . . 3 . . . 1 16 . Damage Inflicted 45820 | . 905 143 . 1393 2268 2816 251 1238 1679 2729 320 511 1739 2459 2650 2504 5119 3899 490 1703 1542 1005 153 1254 613 5822 615 Guns 1276 | . 406 101 . 29 179 . . . . . . . . . . 466 . . . . . . . . 18 45 32 Cannons 2855 | . . . . . 93 57 . 143 . 33 . . 155 . 160 600 302 725 50 463 . . . . . 74 . Explosions 14873 | . 499 42 . 557 1222 249 107 1010 . 1987 . . . 1394 1354 177 1026 973 413 954 . 717 . 750 . 1442 . Melee 26726 | . . . . 807 774 2510 144 85 1679 709 320 511 1584 1065 1136 1261 3791 2201 27 286 1542 288 153 504 595 4207 547 Ramming 90 | . . . . . . . . . . . . . . . . . . . . . . . . . . 54 36 Kinetic 759 | . . . . . 92 57 . 111 . 33 . . . . . 466 . . . . . . . . . . . Thermal 2819 | . 112 42 . 117 87 . . 76 . . . . 155 667 297 366 302 399 . 75 . . . . 18 74 32 Explosive 9687 | . 387 . . 469 1222 249 107 934 . 1987 . . . 106 . . . 579 . 738 . 717 . 750 . 1442 . Electromagnetic 5739 | . 406 101 . . 93 . . 32 . . . . . 621 1217 411 1026 720 463 604 . . . . . 45 . Impact . | . . . . . . . . . . . . . . . . . . . . . . . . . . . . Slashing 22606 | . . . . 807 774 2510 144 85 1679 709 320 511 1584 1065 1136 1261 3791 1470 . 146 357 . . . 531 3428 298 Piercing 4120 | . . . . . . . . . . . . . . . . . . 731 27 140 1185 288 153 504 64 779 249 Highest Corruption 21 | . . . . . . 1 1 1 1 1 . . 5 8 9 9 21 10 10 16 16 20 5 7 8 11 21 Average Corruption 5 | . . . . . . 1 1 1 1 1 . . 3 6 8 6 5 4 10 13 15 19 4 6 7 7 6 Corruption Purged 12 | . . . . . . 1 . . . . . . . . . 6 3 . . . 2 . . . . . . Effects 267 | . . . . . . 1 4 2 2 1 . . 20 17 12 19 19 26 8 24 13 20 11 23 14 24 7 Message Errors 72 | . . . . . . . 2 1 . . . . 4 5 5 4 8 9 3 4 2 6 1 6 4 8 . Matter Fused 63 | . . . . . . . . . . . . . 8 2 2 7 4 10 1 6 4 4 4 1 5 4 1 Heat Flow Errors 31 | . . . . . . . . . . . . . 3 2 2 2 2 1 2 4 3 1 . 2 2 4 1 Energy Discharges 34 | . . . . . . . . . . 1 . . 2 1 1 1 3 2 . 3 2 3 1 5 . 5 4 Data Loss (minor) 43 | . . . . . . 1 2 1 2 . . . 3 3 2 3 2 2 2 3 2 3 2 6 2 1 1 Data Loss (major) 13 | . . . . . . . . . . . . . . 2 . . . 2 . 2 . 2 1 2 . 2 . Misfires 9 | . . . . . . . . . . . . . . 1 . 2 . . . 1 . 1 2 1 1 . . Misdirections 1 | . . . . . . . . . . . . . . . . . . . . 1 . . . . . . . Weapon Failures 1 | . . . . . . . . . . . . . . 1 . . . . . . . . . . . . . Overload Shots . | . . . . . . . . . . . . . . . . . . . . . . . . . . . . Overflow Damage 4687 | . 21 . . 351 234 375 60 26 18 83 93 96 413 361 259 592 318 516 . 26 227 134 . 25 . 366 93 Projectiles 128 | . . . . . . . . 26 . . . . 31 . . 1 . 70 . . . . . . . . . Explosions 523 | . 21 . . . 23 . 16 . . 59 . . . . 81 4 74 35 . 26 . 134 . 18 . 32 . Melee 4036 | . . . . 351 211 375 44 . 18 24 93 96 382 361 178 587 244 411 . . 227 . . 7 . 334 93 Knockbacks 2 | . . . . . . . . 2 . . . . . . . . . . . . . . . . . . . Impact . | . . . . . . . . . . . . . . . . . . . . . . . . . . . . Kinetic 2 | . . . . . . . . 2 . . . . . . . . . . . . . . . . . . . Secondary . | . . . . . . . . . . . . . . . . . . . . . . . . . . . . Self-Inflicted Damage 967 | . 40 36 . . 37 . . 106 . 235 . . . . 42 53 56 98 53 47 . 40 . . . 122 2 Shots 34 | . 1 1 . . 1 . . 4 . 6 . . . . 2 1 4 5 4 3 . 1 . . . 1 . Rammed 9 | . . . . . . . . . . . . . . . . . . . . . . . . . . . 9 Targets Rammed 21 | . . . . . . . . . . . . . . . . . . . . . . . . . . 4 17 Kicked 12 | . . . . . . . . . . . . . . . . . . . . . . . . . . 4 8 Crushed . | . . . . . . . . . . . . . . . . . . . . . . . . . . . . Highest Temperature 353 | . 201 111 . 23 74 12 15 36 1 104 . . 310 274 353 220 228 284 123 321 278 142 56 152 250 182 137 Average Temperature 84 | . 73 68 . 7 22 7 13 10 1 43 . . 99 79 143 97 69 99 52 100 166 64 22 40 105 68 69 Received Heat Transfer 2134 | . 123 45 . 81 144 138 30 117 180 322 . . 36 75 31 6 288 158 30 90 . . 27 27 . 186 . Effects 8 | . . . . . . . . . . . . . . . . . . 6 . 1 1 . . . . . . Energy Bleed 3 | . . . . . . . . . . . . . . . . . . 1 . 1 1 . . . . . . Interference 5 | . . . . . . . . . . . . . . . . . . 5 . . . . . . . . . Siege Activations . | . . . . . . . . . . . . . . . . . . . . . . . . . . . . Robots Corrupted 14 | . . . . . . . . . . . . . . . 5 . . 3 3 3 . . . . . . . Combat Hostiles 12 | . . . . . . . . . . . . . . . 4 . . 2 3 3 . . . . . . . Parts Fried 50 | . 3 . . . . . . . . . . . . 4 9 4 10 8 4 8 . . . . . . . Impact Corruptions . | . . . . . . . . . . . . . . . . . . . . . . . . . . . . Robots Melted . | . . . . . . . . . . . . . . . . . . . . . . . . . . . . Combat Hostiles . | . . . . . . . . . . . . . . . . . . . . . . . . . . . . Parts Melted 1 | . . . . . . . . . . . . . . . . . 1 . . . . . . . . . . Heat Transferred 2772 | . 100 . . 224 444 . . 50 . . . . 100 650 275 325 174 275 . 50 . . . . 18 50 37 Parts Sabotaged 4 | . . . . . . . . . . 4 . . . . . . . . . . . . . . . . . Parts Stolen . | . . . . . . . . . . . . . . . . . . . . . . . . . . . . Parts Stripped . | . . . . . . . . . . . . . . . . . . . . . . . . . . . . Power Chain Reactions 17 | . 2 1 . . . . . 1 . . . . . 4 4 1 3 1 . . . . . . . . . Missiles Intercepted . | . . . . . . . . . . . . . . . . . . . . . . . . . . . . Alert | -11 -10 -10 -10 -9 -8 -7 -7 -7 -7 -6 -6 -6 -6 -6 -6 -6 -6 -5 -5 -5 -5 -4 -4 -4 -4 -3 -2 ------- Run | Scr Mat Min Exi Min Mat Fac Low Low Dat Pro Fac Was Fac Ext Cet Arc Hub Fac Upp Upp Zhi Pro Fac Arm Lab Res Res Peak Influence 833 | . 496 218 . 230 526 357 . . . . 145 47 117 457 833 499 740 585 . . . . 93 319 . 227 163 Initial 362 | . . 193 . . 11 20 . . . . 128 47 32 30 255 333 104 362 . . . . . 35 . . 47 Average 155 | . 211 201 . 199 88 111 . . . . 131 47 38 148 559 368 316 164 . . . . 21 112 . 121 53 Maximum Alert Level 3 | . 2 1 . 1 2 1 . . . . . . . 2 3 2 3 2 . . . . . 1 . 1 . Low Security (%) 71 | 100 60 64 . 16 86 71 . . . . 100 100 100 78 . . 40 65 . . . . 100 98 . 83 100 Level 1 17 | . 7 35 . 83 6 28 . . . . . . . 4 36 57 28 20 . . . . . 1 . 16 . Level 2 9 | . 31 . . . 6 . . . . . . . . 17 38 42 18 13 . . . . . . . . . Level 3 1 | . . . . . . . . . . . . . . . 24 . 12 . . . . . . . . . . Level 4 . | . . . . . . . . . . . . . . . . . . . . . . . . . . . . Level 5 . | . . . . . . . . . . . . . . . . . . . . . . . . . . . . High Security . | . . . . . . . . . . . . . . . . . . . . . . . . . . . . Max Security . | . . . . . . . . . . . . . . . . . . . . . . . . . . . . Squads Dispatched 49 | . 4 . . 1 2 8 . . . 1 1 . 2 4 . . 5 4 . . . . 3 2 . 8 4 Investigation 14 | . 2 . . . 1 4 . . . . . . . 2 . . 1 1 . . . . 2 1 . . . Extermination 13 | . . . . . . 1 . . . . 1 . 2 . . . 2 3 . . . . 1 1 . 2 . Reinforcement 15 | . 2 . . 1 1 3 . . . . . . . 2 . . 2 . . . . . . . . 3 1 Assault 1 | . . . . . . . . . . 1 . . . . . . . . . . . . . . . . . Garrison . | . . . . . . . . . . . . . . . . . . . . . . . . . . . . Intercept 6 | . . . . . . . . . . . . . . . . . . . . . . . . . . 3 3 Construction Impeded 2 | . . . . 1 . . . . . . . . . . . . . . . . . . . . . 1 . Haulers Reinforced . | . . . . . . . . . . . . . . . . . . . . . . . . . . . . Active Scanning Responses . | . . . . . . . . . . . . . . . . . . . . . . . . . . . . Cargo Convoy Interrupts 1 | . . . . . . 1 . . . . . . . . . . . . . . . . . . . . . Stealth | -11 -10 -10 -10 -9 -8 -7 -7 -7 -7 -6 -6 -6 -6 -6 -6 -6 -6 -5 -5 -5 -5 -4 -4 -4 -4 -3 -2 --------- Run | Scr Mat Min Exi Min Mat Fac Low Low Dat Pro Fac Was Fac Ext Cet Arc Hub Fac Upp Upp Zhi Pro Fac Arm Lab Res Res Distress Signals 13 | . 1 . . . 2 1 . . . . . . . 2 2 . 3 1 . . . . . . . 1 . Communications Jammed 78 | . . . . . . . . . . . . . . 29 . . 5 2 . . . . 21 7 . 14 . Distress Signals 78 | . . . . . . . . . . . . . . 29 . . 5 2 . . . . 21 7 . 14 . Times Spotted 301 | . 19 2 . 7 18 11 3 8 4 22 1 . 9 20 19 25 26 28 8 12 . 6 7 9 1 31 5 Peak Tracking Total 9 | . 4 2 . 3 7 3 2 3 2 9 1 . 2 6 7 2 7 6 4 6 . 4 3 3 1 6 4 Tactical Retreats 11 | . . . . . . 1 1 . . 1 . . . . . . 4 2 . 1 . . . . . 1 . Traps | -11 -10 -10 -10 -9 -8 -7 -7 -7 -7 -6 -6 -6 -6 -6 -6 -6 -6 -5 -5 -5 -5 -4 -4 -4 -4 -3 -2 ------- Run | Scr Mat Min Exi Min Mat Fac Low Low Dat Pro Fac Was Fac Ext Cet Arc Hub Fac Upp Upp Zhi Pro Fac Arm Lab Res Res Traps Triggered 8 | . . . . . . . . . . . 2 . 2 1 . . 1 1 . . . . . . . . 1 Indirectly . | . . . . . . . . . . . . . . . . . . . . . . . . . . . . Trap Hack Attempts 6 | . . . . . . . . . . . . . . . . . 6 . . . . . . . . . . Triggered . | . . . . . . . . . . . . . . . . . . . . . . . . . . . . Disarmed 6 | . . . . . . . . . . . . . 6 . . . . . . . . . . . . . . Reprogrammed 1 | . . . . . . . . . . . . . . . . . 1 . . . . . . . . . . Reused . | . . . . . . . . . . . . . . . . . . . . . . . . . . . . Traps Extracted . | . . . . . . . . . . . . . . . . . . . . . . . . . . . . Installed . | . . . . . . . . . . . . . . . . . . . . . . . . . . . . Triggered 5 | . . . . . . 1 2 . . 1 . . . . . . . . . 1 . . . . . . . Machines | -11 -10 -10 -10 -9 -8 -7 -7 -7 -7 -6 -6 -6 -6 -6 -6 -6 -6 -5 -5 -5 -5 -4 -4 -4 -4 -3 -2 ---------- Run | Scr Mat Min Exi Min Mat Fac Low Low Dat Pro Fac Was Fac Ext Cet Arc Hub Fac Upp Upp Zhi Pro Fac Arm Lab Res Res Machines Disabled 61 | . 5 . . 1 13 6 . 1 1 2 1 . 1 5 . 1 9 7 . 2 . . 1 3 1 1 . Max in Single Turn 6 | . 2 . . 1 4 1 . 1 1 1 1 . 1 2 . . 6 1 . 2 . . 1 1 1 1 . Garrison Access 7 | . . . . . . 2 . . . . . . . . . . 1 1 . . . . 1 . . 1 1 Network Hub 2 | . . . . . . . . . . . . . . . . . 2 . . . . . . . . . . Machines Sabotaged 1 | . . . . . . . . . . . . . . . . . 1 . . . . . . . . . . Garrisons Compromised 1 | . . . . . . 1 . . . . . . . . . . . . . . . . . . . . . Overloaded Fab Kills . | . . . . . . . . . . . . . . . . . . . . . . . . . . . . Hacking | -11 -10 -10 -10 -9 -8 -7 -7 -7 -7 -6 -6 -6 -6 -6 -6 -6 -6 -5 -5 -5 -5 -4 -4 -4 -4 -3 -2 --------- Run | Scr Mat Min Exi Min Mat Fac Low Low Dat Pro Fac Was Fac Ext Cet Arc Hub Fac Upp Upp Zhi Pro Fac Arm Lab Res Res Machines Accessed 114 | . 3 . 2 . 8 18 . 2 4 . 2 . 15 13 1 . 7 13 . . 4 1 11 2 1 4 3 Terminals 60 | . 1 . . . 6 10 . . . . 1 . 8 13 1 . 6 6 . . . 1 4 1 . 1 1 Fabricators 8 | . . . . . . 3 . . . . . . 1 . . . . 1 . . . . 2 1 . . . Repair Stations 10 | . . . . . 1 1 . . . . . . 1 . . . . 4 . . . . 2 . . 1 . Recycling Units 11 | . 2 . . . . 1 . . . . 1 . 3 . . . . 1 . . . . 2 . . . 1 Scanalyzers 4 | . . . . . 1 1 . . . . . . 1 . . . . . . . . . . . . 1 . Garrison Access 8 | . . . . . . 2 . . . . . . 1 . . . 1 1 . . . . 1 . . 1 1 Total Hacks 405 | . 5 . 2 . 26 43 . 2 31 . 4 . 37 38 3 . 15 82 . . 17 2 56 7 1 22 12 Successful 242 | . 4 . 2 . 20 21 . 2 31 . 3 . 16 17 1 . 10 45 . . 17 2 30 3 1 11 6 Failed 163 | . 1 . . . 6 22 . . . . 1 . 21 21 2 . 5 37 . . . . 26 4 . 11 6 Catastrophic 26 | . . . . . . 3 . . . . 1 . 4 2 . . . 7 . . . . 5 . . 3 1 Database Lockouts . | . . . . . . . . . . . . . . . . . . . . . . . . . . . . Manual 97 | . 3 . 1 . 5 11 . . . . 1 . 15 11 1 . 4 21 . . . . 22 2 . . . Terminals 207 | . 2 . . . 18 22 . . . . 1 . 20 38 3 . 14 43 . . . 2 23 4 . 12 5 Fabricators 16 | . . . . . . 5 . . . . . . 2 . . . . 1 . . . . 5 3 . . . Repair Stations 67 | . . . . . 2 3 . . . . . . 7 . . . . 34 . . . . 18 . . 3 . Recycling Units 32 | . 3 . . . . 4 . . . . 3 . 6 . . . . 3 . . . . 9 . . . 4 Scanalyzers 17 | . . . . . 6 5 . . . . . . 1 . . . . . . . . . . . . 5 . Garrison Access 13 | . . . . . . 4 . . . . . . 1 . . . 1 1 . . . . 1 . . 2 3 Terminal Hacks 133 | . 1 . 2 . 13 6 . 2 31 . . . 4 17 1 . 6 18 . . 17 2 5 1 1 3 3 Record 22 | . . . 1 . . . . . 11 . . . . . . . . . . . 5 2 . . 1 2 . Part Schematic 20 | . . . . . . . . . 11 . . . . . . . 1 4 . . 4 . . . . . . Robot Schematic 6 | . . . . . . . . . 6 . . . . . . . . . . . . . . . . . . Robot Analysis 6 | . . . . . 1 . . . . . . . . . . . . 1 . . 4 . . . . . . Prototype ID Bank 11 | . . . . . 1 . . . 3 . . . . 2 . . 1 . . . 4 . . . . . . Open Door 11 | . . . . . . . . 2 . . . . . 8 1 . . . . . . . . . . . . Open DSF 2 | . . . . . . 1 . . . . . . 1 . . . . . . . . . . . . . . Level Access Points 1 | . . . . . 1 . . . . . . . . . . . . . . . . . . . . . . Branch Access Points 4 | . . . . . . 1 . . . . . . . . . . . 1 . . . . 1 . . . 1 Terminal Index 2 | . . . . . . . . . . . . . . . . . 1 1 . . . . . . . . . Fabricator Index 2 | . . . . . . . . . . . . . . . . . . 1 . . . . . 1 . . . Repair Station Index 1 | . . . . . . . . . . . . . 1 . . . . . . . . . . . . . . Scanalyzer Index 1 | . . . . . . . . . . . . . . . . . . 1 . . . . . . . . . Alert Level 8 | . . . . . 1 1 . . . . . . 1 1 . . 1 2 . . . . 1 . . . . Unreport Threat 13 | . . . . . 5 2 . . . . . . . 3 . . . 3 . . . . . . . . . Locate Traps 6 | . 1 . . . 1 1 . . . . . . . 1 . . . . . . . . 1 . . . 1 Disarm Traps 1 | . . . . . . . . . . . . . 1 . . . . . . . . . . . . . . Transport Status 1 | . . . . . 1 . . . . . . . . . . . . . . . . . . . . . . Recall Investigation 3 | . . . . . . . . . . . . . . 1 . . . . . . . . 2 . . . . Hauler Manifests 2 | . . . . . 1 . . . . . . . . . . . . 1 . . . . . . . . . Registered Components 1 | . . . . . . . . . . . . . . . . . . 1 . . . . . . . . . Registered Prototypes 1 | . . . . . . . . . . . . . . . . . . 1 . . . . . . . . . Zone Layout 7 | . . . . . 1 . . . . . . . . 1 . . 2 1 . . . . . . . 1 1 EX-Prototype ID Bank 1 | . . . 1 . . . . . . . . . . . . . . . . . . . . . . . . Fabricator Hacks 6 | . . . . . . 1 . . . . . . 2 . . . . . . . . . 1 2 . . . Network Status 1 | . . . . . . 1 . . . . . . . . . . . . . . . . . . . . . Load Schematic 3 | . . . . . . . . . . . . . 1 . . . . . . . . . 1 1 . . . Build 2 | . . . . . . . . . . . . . 1 . . . . . . . . . . 1 . . . Repair Station Hacks 45 | . . . . . 2 1 . . . . . . 4 . . . . 21 . . . . 14 . . 3 . Scan Component 25 | . . . . . 1 1 . . . . . . 2 . . . . 12 . . . . 8 . . 1 . Repair 19 | . . . . . 1 . . . . . . . 2 . . . . 9 . . . . 6 . . 1 . Refit 1 | . . . . . . . . . . . . . . . . . . . . . . . . . . 1 . Recycling Unit Hacks 13 | . . . . . . 1 . . . . 2 . 3 . . . . 2 . . . . 3 . . . 2 Report Inventory 9 | . . . . . . 1 . . . . 1 . 3 . . . . 1 . . . . 2 . . . 1 Retrieve Components 4 | . . . . . . . . . . . 1 . . . . . . 1 . . . . 1 . . . 1 Scanalyzer 12 | . . . . . 4 4 . . . . . . . . . . . . . . . . . . . 4 . Insert Component 6 | . . . . . 2 2 . . . . . . . . . . . . . . . . . . . 2 . Analyze 6 | . . . . . 2 2 . . . . . . . . . . . . . . . . . . . 2 . Garrison Access Hacks 6 | . . . . . . 1 . . . . . . . . . . 1 1 . . . . 1 . . 1 1 Seal Access 6 | . . . . . . 1 . . . . . . . . . . 1 1 . . . . 1 . . 1 1 Unauthorized Hacks 27 | . 3 . . . 1 7 . . . . 1 . 3 . . . 3 3 . . . . 6 . . . . Terminals 11 | . . . . . . 2 . . . . . . 2 . . . 3 2 . . . . 2 . . . . Track 1 | . . . . . . . . . . . . . . . . . . . . . . . 1 . . . . Assimilate 6 | . . . . . . 1 . . . . . . . . . . 2 2 . . . . 1 . . . . Botnet 1 | . . . . . . . . . . . . . 1 . . . . . . . . . . . . . . Operators 2 | . . . . . . 1 . . . . . . 1 . . . . . . . . . . . . . . Sabotage 1 | . . . . . . . . . . . . . . . . . 1 . . . . . . . . . . Fabricators 2 | . . . . . . 1 . . . . . . . . . . . 1 . . . . . . . . . Haulers 2 | . . . . . . 1 . . . . . . . . . . . 1 . . . . . . . . . Repair Stations 1 | . . . . . . . . . . . . . 1 . . . . . . . . . . . . . . Mechanics 1 | . . . . . . . . . . . . . 1 . . . . . . . . . . . . . . Recycling Units 11 | . 3 . . . . 3 . . . . 1 . . . . . . . . . . . 4 . . . . Reject 1 | . . . . . . 1 . . . . . . . . . . . . . . . . . . . . . Recyclers 5 | . 1 . . . . 1 . . . . 1 . . . . . . . . . . . 2 . . . . Mask 3 | . . . . . . 1 . . . . . . . . . . . . . . . . 2 . . . . Tunnel 2 | . 2 . . . . . . . . . . . . . . . . . . . . . . . . . . Scanalyzers 1 | . . . . . 1 . . . . . . . . . . . . . . . . . . . . . . Extract 1 | . . . . . 1 . . . . . . . . . . . . . . . . . . . . . . Garrison Access 1 | . . . . . . 1 . . . . . . . . . . . . . . . . . . . . . Jam 1 | . . . . . . 1 . . . . . . . . . . . . . . . . . . . . . Data Cores Recovered . | . . . . . . . . . . . . . . . . . . . . . . . . . . . . Used . | . . . . . . . . . . . . . . . . . . . . . . . . . . . . Hacking Detections 78 | . 1 . . . 7 16 . . . . 2 . 14 10 1 . 5 9 . . . . 9 2 . 1 1 Full Trace Events 9 | . . . . . . 3 . . . . . . . 2 . . . 1 . . . . 2 1 . . . Feedback Events 1 | . . . . . . 1 . . . . . . . . . . . . . . . . . . . . . Corruption 1 | . . . . . . 1 . . . . . . . . . . . . . . . . . . . . . Feedback Blocked . | . . . . . . . . . . . . . . . . . . . . . . . . . . . . Robot Schematics Acquired 6 | . . . . . . . . . 6 . . . . . . . . . . . . . . . . . . Robots Built . | . . . . . . . . . . . . . . . . . . . . . . . . . . . . Authchips . | . . . . . . . . . . . . . . . . . . . . . . . . . . . . Time . | . . . . . . . . . . . . . . . . . . . . . . . . . . . . Total Robot Build Rating . | . . . . . . . . . . . . . . . . . . . . . . . . . . . . Part Schematics Acquired 32 | . . . . . 8 2 . . 11 . . . . . . . 1 4 . . 4 . . . . 2 . Parts Built 3 | . . . . . . . . . . . . . 1 . . . . . . . . . . 2 . . . Authchips 1 | . . . . . . . . . . . . . 1 . . . . . . . . . . . . . . Time 81 | . . . . . . . . . . . . . 39 . . . . . . . . . . 42 . . . Total Part Build Rating 15 | . . . . . . . . . . . . . 7 . . . . . . . . . . 8 . . . Parts Repaired 19 | . . . . . 1 . . . . . . . 2 . . . . 9 . . . . 6 . . 1 . Time 1253 | . . . . . 38 . . . . . . . 178 . . . . 477 . . . . 461 . . 99 . Parts Recycled . | . . . . . . . . . . . . . . . . . . . . . . . . . . . . Recycled Matter . | . . . . . . . . . . . . . . . . . . . . . . . . . . . . Retrieved Matter . | . . . . . . . . . . . . . . . . . . . . . . . . . . . . Retrieved Components 17 | . . . . . . . . . . . 3 . . . . . . 10 . . . . 1 . . . 3 Parts Scanalyzed 6 | . . . . . 2 2 . . . . . . . . . . . . . . . . . . . 2 . Part Schematics Acquired 6 | . . . . . 2 2 . . . . . . . . . . . . . . . . . . . 2 . Parts Damaged . | . . . . . . . . . . . . . . . . . . . . . . . . . . . . Bothacking | -11 -10 -10 -10 -9 -8 -7 -7 -7 -7 -6 -6 -6 -6 -6 -6 -6 -6 -5 -5 -5 -5 -4 -4 -4 -4 -3 -2 ------------ Run | Scr Mat Min Exi Min Mat Fac Low Low Dat Pro Fac Was Fac Ext Cet Arc Hub Fac Upp Upp Zhi Pro Fac Arm Lab Res Res Used RIF Installer . | . . . . . . . . . . . . . . . . . . . . . . . . . . . . Robots Hacked 1 | . . . . . . . . . . . . . 1 . . . . . . . . . . . . . . Non-combat 1 | . . . . . . . . . . . . . 1 . . . . . . . . . . . . . . Combat . | . . . . . . . . . . . . . . . . . . . . . . . . . . . . Robot Hacks Applied 2 | . . . . . . . . . . . . . 2 . . . . . . . . . . . . . . parse_system 1 | . . . . . . . . . . . . . 1 . . . . . . . . . . . . . . find_dsf 1 | . . . . . . . . . . . . . 1 . . . . . . . . . . . . . . Relay Couplers Released . | . . . . . . . . . . . . . . . . . . . . . . . . . . . . Robots Rewired 9 | . . . . . . . . 3 . . . . . 6 . . . . . . . . . . . . . Allies Hacked . | . . . . . . . . . . . . . . . . . . . . . . . . . . . . Hacks Repelled . | . . . . . . . . . . . . . . . . . . . . . . . . . . . . Allies | -11 -10 -10 -10 -9 -8 -7 -7 -7 -7 -6 -6 -6 -6 -6 -6 -6 -6 -5 -5 -5 -5 -4 -4 -4 -4 -3 -2 -------- Run | Scr Mat Min Exi Min Mat Fac Low Low Dat Pro Fac Was Fac Ext Cet Arc Hub Fac Upp Upp Zhi Pro Fac Arm Lab Res Res Total Allies 28 | . . . . . . . . 3 . . . . . 17 5 . 1 1 . . . . 1 . . . . Largest Group 10 | . . . . . . . . 3 . . . . . 10 8 4 1 1 . . . . 1 . . . . Highest-Rated Group 674 | . . . . . . . . 75 . . . . . 439 674 305 26 10 . . . . 10 . . . . Highest-Rated Ally 159 | . . . . . . . . 25 . . . . . 159 159 95 26 10 . . . . 10 . . . . Total Orders 10 | . . . . . . . . . . . 1 2 . . . 3 4 . . . . . . . . . . STAY 4 | . . . . . . . . . . . . . . . . 1 3 . . . . . . . . . . ROAM 1 | . . . . . . . . . . . . . . . . 1 . . . . . . . . . . . FOLLOW 2 | . . . . . . . . . . . . . . . . 1 1 . . . . . . . . . . EXPLORE 2 | . . . . . . . . . . . 1 1 . . . . . . . . . . . . . . . RETURN 1 | . . . . . . . . . . . . 1 . . . . . . . . . . . . . . . Ally Attacks 160 | . . . . . . . . 4 . . . . . 89 43 24 . . . . . . . . . . . Total Damage 3991 | . . . . . . . . 63 . . . . . 1568 1408 952 . . . . . . . . . . . Kills 24 | . . . . . . . . . . . . . . 10 11 3 . . . . . . . . . . . Allies Corrupted 2 | . . . . . . . . . . . . . . . 1 . 1 . . . . . . . . . . Allies Melted . | . . . . . . . . . . . . . . . . . . . . . . . . . . . . Intel | -11 -10 -10 -10 -9 -8 -7 -7 -7 -7 -6 -6 -6 -6 -6 -6 -6 -6 -5 -5 -5 -5 -4 -4 -4 -4 -3 -2 ------- Run | Scr Mat Min Exi Min Mat Fac Low Low Dat Pro Fac Was Fac Ext Cet Arc Hub Fac Upp Upp Zhi Pro Fac Arm Lab Res Res Robot Analysis Total 6 | . . . . . 1 . . . . . . . . . . . . 1 . . 4 . . . . . . Derelict Logs Recovered 8 | . . 1 . . . . 1 1 . 2 . . . . . . . . 2 . . 1 . . . . . Drone Launches 2 | . . . . . . . . . . . 1 1 . . . . . . . . . . . . . . . Drone Recoveries 1 | . . . . . . . . . . . . 1 . . . . . . . . . . . . . . . Exploration | -11 -10 -10 -10 -9 -8 -7 -7 -7 -7 -6 -6 -6 -6 -6 -6 -6 -6 -5 -5 -5 -5 -4 -4 -4 -4 -3 -2 ------------- Run | Scr Mat Min Exi Min Mat Fac Low Low Dat Pro Fac Was Fac Ext Cet Arc Hub Fac Upp Upp Zhi Pro Fac Arm Lab Res Res Turns Passed 20690 | 2 369 181 416 405 881 1705 665 950 473 530 361 310 1865 739 489 790 1536 2384 214 567 319 465 1052 870 335 1258 559 Spaces Moved 11729 | 1 201 127 342 291 426 1071 472 557 197 254 216 199 1096 471 257 461 810 1165 165 396 218 288 503 452 233 535 325 Core 6 | . . . . . . . . . . . . . . . . . . . . . . . . . . . 6 Treads 21 | . . . . . . . . . 20 . 1 . . . . . . . . . . . . . . . . Legs 8507 | 1 201 127 280 . . . . . 56 254 215 199 1096 471 257 461 810 1165 165 396 218 288 503 452 233 528 131 Wheels 3195 | . . . 62 291 426 1071 472 557 121 . . . . . . . . . . . . . . . . 7 188 Hover . | . . . . . . . . . . . . . . . . . . . . . . . . . . . . Flight . | . . . . . . . . . . . . . . . . . . . . . . . . . . . . Fastest Speed 50 | 120 120 120 120 120 120 125 130 130 130 120 120 120 114 120 120 120 120 112 116 116 116 116 112 116 116 106 50 Average Speed 125 | 120 120 120 120 120 146 134 130 141 168 172 121 121 120 120 120 120 120 118 116 116 116 116 119 116 116 129 117 Slowest Speed 490 | 120 120 120 120 120 165 180 130 145 250 190 490 190 187 120 120 120 120 190 116 116 116 116 185 116 116 186 125 Overloaded Moves . | . . . . . . . . . . . . . . . . . . . . . . . . . . . . Propulsion Burnouts . | . . . . . . . . . . . . . . . . . . . . . . . . . . . . Robots Hopped . | . . . . . . . . . . . . . . . . . . . . . . . . . . . . Cave-ins Triggered 1 | . . . . . . . . . . . . . . 1 . . . . . . . . . . . . . Teleports 2 | . . . . . . . . . . . . . . . . . . . . . . . . 1 . 1 . Exploration Rate (%) 46 | 2 43 20 70 68 47 32 62 62 80 47 8 97 25 62 67 97 47 28 32 57 60 50 15 19 94 11 10 Regions Visited 27 Branch Regions 17 Pre-discovered Areas 10 | . 2 . 1 . . . . . 1 2 . . . . . . . . . . 3 1 . . . . . Known Exits Taken 5 | . . . . . 1 1 . . . . . . . . . . . 1 . . . 1 1 . . . . Unknown Exits Taken 20 | 1 1 1 1 1 . . 1 1 1 1 . . 1 1 1 1 1 . 1 1 1 . . 1 1 1 . Scrap Searched 12 | . . 1 . 2 . . 1 2 . . . . . . . . . . . 4 . 2 . . . . . Spaces Dug 363 | . 35 . . . 33 29 3 . . . 7 . 46 64 . . 26 40 . . . 18 24 9 . 15 14 Terrain Destroyed 1349 | . 72 4 . 84 79 37 19 89 . 154 7 . 50 98 26 12 196 87 . 32 . 72 26 82 . 108 15 Melee 175 | . . . . . 11 29 3 . . . 7 . 27 1 . . 20 27 . . . 1 16 4 . 15 14 Projectile 85 | . . . . . . . . 2 . . . . 23 . . 2 11 14 . . . 17 10 5 . . 1 AOE 1089 | . 72 4 . 84 68 8 16 87 . 154 . . . 97 26 10 165 46 . 32 . 54 . 73 . 93 . Terrain Rammed . | . . . . . . . . . . . . . . . . . . . . . . . . . . . . Walls Destroyed . | . . . . . . . . . . . . . . . . . . . . . . . . . . . . Machines Disabled . | . . . . . . . . . . . . . . . . . . . . . . . . . . . . Actions | -11 -10 -10 -10 -9 -8 -7 -7 -7 -7 -6 -6 -6 -6 -6 -6 -6 -6 -5 -5 -5 -5 -4 -4 -4 -4 -3 -2 --------- Run | Scr Mat Min Exi Min Mat Fac Low Low Dat Pro Fac Was Fac Ext Cet Arc Hub Fac Upp Upp Zhi Pro Fac Arm Lab Res Res Total 16472 | 2 282 147 348 324 617 1256 516 697 290 307 302 266 1548 612 397 639 1239 1987 180 478 267 378 907 747 291 1004 444 Wait 2655 | . 29 7 . 1 90 40 28 79 23 5 45 42 304 41 71 102 225 561 1 11 14 40 353 226 5 285 27 Move 11702 | . 200 126 341 290 425 1070 471 556 196 253 216 198 1095 469 256 460 809 1164 164 395 217 287 502 451 232 534 325 Hop . | . . . . . . . . . . . . . . . . . . . . . . . . . . . . Pick Up 210 | . 11 3 . 3 16 16 3 5 8 2 8 4 17 1 4 2 16 38 2 9 3 3 6 8 10 6 6 Fast Attach 130 | . 1 2 1 . 5 5 . 5 4 6 4 2 7 1 6 5 6 16 . 8 10 3 5 1 7 10 10 Attach 116 | . 2 . . . 4 5 . 2 3 6 3 1 3 2 . . 11 11 1 8 1 3 3 5 6 24 12 Detach 24 | . . . . . 1 1 . . . 1 2 . 1 . . . 1 2 . 2 . . . . . 8 5 Swap 226 | . 6 2 3 9 16 14 4 6 6 3 2 5 12 8 15 6 20 32 4 5 . 6 5 14 3 19 1 Drop 259 | 2 8 2 3 2 12 25 3 12 4 1 5 10 22 2 11 8 20 33 2 16 11 6 2 8 14 7 8 Fire 374 | . 25 5 . 12 29 5 1 16 . 21 . . 27 12 25 48 26 42 5 18 . 20 9 11 1 13 3 Melee 669 | . . . . 7 19 75 6 2 46 9 13 4 60 14 9 8 99 88 1 6 11 10 22 23 13 94 30 Ram 5 | . . . . . . . . . . . . . . . . . . . . . . . . . . . 5 Kick 12 | . . . . . . . . . . . . . . . . . . . . . . . . . . 4 8 Crush 4 | . . . . . . . . . . . . . . . . . . . . . . . . . . . 4 Escape Stasis 6 | . . . . . . . . . . . 4 . . 2 . . . . . . . . . . . . . Rewire 74 | . . . . . . . . 14 . . . . . 60 . . . . . . . . . . . . . Trap 6 | . . . . . . . . . . . . . . . . . 6 . . . . . . . . . . Miscellaneous . | . . . . . . . . . . . . . . . . . . . . . . . . . . . . Route ------- -11/Scrapyard -10/Materials -10/Mines -10/Exiles -9/Mines (discovered 2 exits: *Mat x2) -8/Materials (discovered 3 exits: *Fac x3) -7/Factory (discovered 5 exits: *Fac / Sto x2 / *Low x2) -7/Lower Caves -7/Lower Caves -7/Data Miner -6/Proximity Caves -6/Factory -6/Waste -6/Factory -6/Extension (discovered 2 exits: *Fac / *Cet) -6/Cetus (discovered 2 exits: *Fac / [*Arc]) -6/Archives (discovered 3 exits: *Fac / *Hub x2) -6/Hub_04(d) -5/Factory (discovered 3 exits: *Fac / *Upp x2) -5/Upper Caves -5/Upper Caves -5/Zhirov -4/Proximity Caves -4/Factory (discovered 3 exits: Upp x2 / *Arm) -4/Armory (discovered 2 exits: Res / *Lab) -4/Lab -3/Research -2/Research (discovered 2 exits: Tes x2) History --------- Turn | Location | Event 3 | -11/Scrapyard | Discovered new exit (range 0) 3 | -11/Scrapyard | Entered Materials 273 | -10/Materials | Destroyed 9 combat bots 341 | -10/Materials | Build established: Mutant 366 | -10/Materials | Discovered new exit (range 6) 372 | -10/Materials | Entered Mines 379 | -10/Mines | Received a Rocket Launcher from a helpful Derelict 430 | -10/Mines | Assembled infested the area 474 | -10/Mines | Learned 2 Materials zone layouts 547 | -10/Mines | Deemed a non-threat by the Exiles lab entrance 548 | -10/Mines | Discovered new exit (range 5) 553 | -10/Mines | Entered Exiles 582 | -10/Exiles | Met 8R-AWN 604 | -10/Exiles | Met EX-HEX 649 | -10/Exiles | Met EX-DEC 655 | -10/Exiles | Learned location of Zion (-6) 676 | -10/Exiles | Met EX-BIN 693 | -10/Exiles | Aligned with FarCom system 694 | -10/Exiles | Given EX-Vault access code 721 | -10/Exiles | Opened EX-Vault 729 | -10/Exiles | Found Longsword +1 758 | -10/Exiles | Warned to stay clear of 0b10 Research branches 807 | -10/Exiles | Build established: Scavenger-Mutant 958 | -10/Exiles | Discovered new exit (range 10) 969 | -10/Exiles | Left Exiles lab with Longsword +1 969 | -10/Exiles | Entered Mines 1178 | -9/Mines | YI-UF0 nonchalantly dropped a Grenade Launcher on the ground 1180 | -9/Mines | Destroyed YI-UF0 1186 | -9/Mines | Found Prototype Storage 1187 | -9/Mines | Identified YI-UF0's Bottomless Matter Pit 1218 | -9/Mines | Build established: Mutant 1288 | -9/Mines | A weapon hastily lodged in a ceiling crevice suddenly fell to the ground 1355 | -9/Mines | Discovered new exit (range 6) 1365 | -9/Mines | Discovered new exit (range 13) 1374 | -9/Mines | Entered Materials 1374 | -8/Materials | Evolved 4 slots: Propulsion x2, Utility x2 1375 | -8/Materials | Identified exit to Factory 1861 | -8/Materials | Destroyed 11 combat bots 1954 | -8/Materials | Repaired Hvy. Armor Plating? 2255 | -8/Materials | Entered Factory 2255 | -7/Factory | Evolved 2 slots: Utility x2 3347 | -7/Factory | Identified exit to Storage 3347 | -7/Factory | Identified exit to Lower Caves 3384 | -7/Factory | Discovered new exit (range 12) 3917 | -7/Factory | Cargo convoy interrupted 3960 | -7/Factory | Entered Lower Caves 4202 | -7/Lower Caves | Learned Factory terminal intel 4359 | -7/Lower Caves | Spotted B-75 Beast 4584 | -7/Lower Caves | Discovered new exit (range 15) 4625 | -7/Lower Caves | Entered another Lower Caves area 4794 | -7/Lower Caves | Learned Factory terminal intel 4882 | -7/Lower Caves | Encountered a Warlord checkpoint 5195 | -7/Lower Caves | Found Prototype Device 5195 | -7/Lower Caves | Identified Heart of Steel 5366 | -7/Lower Caves | Discovered new exit (range 13) 5575 | -7/Lower Caves | Entered Data Miner 5577 | -7/Data Miner | Discovered new exit (range 6) 5605 | -7/Data Miner | Met Data Miner 5632 | -7/Data Miner | Learned location of Section 7 (-2) 5632 | -7/Data Miner | Acquired the access code to Warlord's prototype stash 5655 | -7/Data Miner | Received God Mode back door access code from Data Miner 5681 | -7/Data Miner | Destroyed Data Miner 5684 | -7/Data Miner | Found Prototype Hackware 5688 | -7/Data Miner | Found Prototype Hackware 5689 | -7/Data Miner | Data Conduit disabled 5907 | -7/Data Miner | Lost 5 parts (1p1n3u) 6048 | -7/Data Miner | Entered Proximity Caves 6117 | -6/Proximity Caves | Learned location of Extension (-6) 6220 | -6/Proximity Caves | Build established: Scavenger-Mutant 6398 | -6/Proximity Caves | Attracted the attention of an 0b10 outpost 6511 | -6/Proximity Caves | Destroyed 11 combat bots 6517 | -6/Proximity Caves | Lost 8 parts (2n4u2w) 6572 | -6/Proximity Caves | Discovered new exit (range 4) 6578 | -6/Proximity Caves | Entered Factory 6578 | -6/Factory | Evolved 2 slots: Propulsion x1, Utility x1 6579 | -6/Factory | Loaded intel: 28 terminal locations 6661 | -6/Factory | Discovered new exit (range 18) 6786 | -6/Factory | Identified exit to Lower Caves 6939 | -6/Factory | Sucked down chute 6939 | -6/Factory | Entered Waste 6939 | -6/Waste | The area was eerily silent 7099 | -6/Waste | Discovered new exit (range 40) 7170 | -6/Waste | Found Damper Plating 7249 | -6/Waste | Entered Factory 7250 | -6/Factory | Loaded intel: 28 terminal locations 7394 | -6/Factory | Identified exit to DSF 8077 | -6/Factory | Repaired Enh. Flexi-carbon Leg? 8235 | -6/Factory | Repaired Enh. Flexi-carbon Leg 8500 | -6/Factory | Discovered new exit (range 12) 8726 | -6/Factory | Fabricated HERF Cannon (x1) 9114 | -6/Factory | Entered Extension 9349 | -6/Extension | Identified System Mapper 9352 | -6/Extension | Rescued a captive Derelict 9353 | -6/Extension | Rescued a captive Derelict 9363 | -6/Extension | Rescued a captive Derelict 9524 | -6/Extension | Crushed by falling debris 9569 | -6/Extension | Rescued a captive Derelict 9609 | -6/Extension | Rescued a captive Derelict 9671 | -6/Extension | Rescued a captive Derelict 9706 | -6/Extension | Rescued A7 9755 | -6/Extension | Rescued a captive Derelict 9756 | -6/Extension | Rescued a captive Derelict 9789 | -6/Extension | Rescued a captive Derelict 9790 | -6/Extension | Rescued a captive Derelict 9829 | -6/Extension | Discovered new exit (range 10) 9830 | -6/Extension | Discovered new exit (range 6) 9853 | -6/Extension | Entered Cetus 9853 | -6/Cetus | Accompanied by 5 allies (A7) 9858 | -6/Cetus | Acquired a Cetus Manufacturing Module code from A7 9874 | -6/Cetus | Spotted Cetus Guard 9874 | -6/Cetus | Spotted Cetus Guard 9876 | -6/Cetus | Spotted Cetus Guard 9877 | -6/Cetus | Spotted Cetus Guard 9883 | -6/Cetus | Allies destroyed Cetus Guard 9892 | -6/Cetus | Destroyed Cetus Guard 9896 | -6/Cetus | Allies destroyed Cetus Guard 9899 | -6/Cetus | Destroyed Cetus Guard 9995 | -6/Cetus | Started Cetus Manufacturing Module 10009 | -6/Cetus | Escorted A7 to Cetus Mainframe 10020 | -6/Cetus | Manufactured an Enhanced Grunt 10045 | -6/Cetus | Manufactured an Enhanced Grunt 10045 | -6/Cetus | Discovered new exit (range 15) 10055 | -6/Cetus | Destroyed 7 combat bots 10070 | -6/Cetus | Manufactured an Enhanced Grunt 10095 | -6/Cetus | Manufactured an Enhanced Grunt 10120 | -6/Cetus | Manufactured an Enhanced Grunt 10132 | -6/Cetus | Spotted Cetus Guard 10132 | -6/Cetus | Spotted Cetus Guard 10138 | -6/Cetus | Allies destroyed Cetus Guard 10138 | -6/Cetus | Spotted Cetus Guard 10140 | -6/Cetus | Destroyed Cetus Guard 10140 | -6/Cetus | Spotted Cetus Guard 10151 | -6/Cetus | Destroyed Cetus Guard 10152 | -6/Cetus | Allies destroyed Cetus Guard 10155 | -6/Cetus | Discovered new exit (range 16) 10162 | -6/Cetus | Met Revision 17 10179 | -6/Cetus | Destroyed Revision 17 10249 | -6/Cetus | Destroyed A7 10251 | -6/Cetus | Extracted ID and sensor layout for unrecognized location from A7's data core 10342 | -6/Cetus | Entered Archives 10342 | -6/Archives | Accompanied by 4 allies 10432 | -6/Archives | Found Prototype Device 10432 | -6/Archives | Identified Exp. Thermal Shield 10469 | -6/Archives | Discovered new exit (range 15) 10488 | -6/Archives | Discovered new exit (range 16) 10698 | -6/Archives | Discovered new exit (range 13) 11132 | -6/Archives | Entered Hub_04(d) 11597 | -6/Hub_04(d) | Spotted B-75 Beast 11946 | -6/Hub_04(d) | Discovered new exit (range 6) 12117 | -6/Hub_04(d) | Network Hub disabled 12194 | -6/Hub_04(d) | Network Hub disabled 12339 | -6/Hub_04(d) | Spotted Lightning 12340 | -6/Hub_04(d) | Spotted Lightning 12340 | -6/Hub_04(d) | Spotted Lightning 12414 | -6/Hub_04(d) | Destroyed Lightning 12451 | -6/Hub_04(d) | Destroyed Lightning 12466 | -6/Hub_04(d) | Destroyed Lightning 12484 | -6/Hub_04(d) | Found Prototype Device 12484 | -6/Hub_04(d) | Identified Exp. Phase Shifter 12502 | -6/Hub_04(d) | Found Prototype Energy Cannon 12503 | -6/Hub_04(d) | Destroyed 9 combat bots 12523 | -6/Hub_04(d) | System corruption reached 10% 12532 | -6/Hub_04(d) | Found Prototype Processor 12532 | -6/Hub_04(d) | Identified Exp. Targeting Computer 12668 | -6/Hub_04(d) | Entered Factory 12668 | -5/Factory | Evolved 2 slots: Power x1, Utility x1 12770 | -5/Factory | Found Imp. Powered Armor 12972 | -5/Factory | Build established: Scavenger-Assassin 13035 | -5/Factory | Identified exit to Upper Caves 13049 | -5/Factory | Identified Deep Network Scanner 13097 | -5/Factory | Identified EMDS 13277 | -5/Factory | Repaired Centrium Medium Armor Plating 13319 | -5/Factory | Discovered new exit (range 11) 13396 | -5/Factory | Repaired Hcp. Storage Unit? 13716 | -5/Factory | Found Launcher Loader 13828 | -5/Factory | Repaired Quantum Reactor 13885 | -5/Factory | Repaired Enh. Biometal Leg 14033 | -5/Factory | Repaired Enh. Flexi-carbon Leg 14079 | -5/Factory | Repaired Enh. Flexi-carbon Leg 14134 | -5/Factory | Repaired Centrium Medium Armor Plating 14481 | -5/Factory | Repaired Broken Enh. Flexi-carbon Leg 14539 | -5/Factory | Repaired Centrium Medium Armor Plating 14736 | -5/Factory | Build established: Scavenger-Mutant 14934 | -5/Factory | System corruption reached 10% 15052 | -5/Factory | Entered Upper Caves 15117 | -5/Upper Caves | Learned location of 1 exit from Proximity Caves 15122 | -5/Upper Caves | Encountered a Warlord checkpoint 15226 | -5/Upper Caves | Learned 4 Factory zone layouts 15260 | -5/Upper Caves | Discovered new exit (range 4) 15266 | -5/Upper Caves | Entered another Upper Caves area 15429 | -5/Upper Caves | Acquired the password to a Derelict Tinkerer's latest research 15495 | -5/Upper Caves | Caught by Unaware searching for contraband prototypes 15507 | -5/Upper Caves | Caught by Unaware searching for contraband prototypes 15763 | -5/Upper Caves | Found Imp. Powered Armor 15825 | -5/Upper Caves | Discovered new exit (range 7) 15833 | -5/Upper Caves | Entered Zhirov 15833 | -5/Zhirov | Discovered new exit (range 3) 15854 | -5/Zhirov | Met Zhirov 15875 | -5/Zhirov | Learned location of Quarantine (-3) 15875 | -5/Zhirov | Learned location of Testing (-2) 15875 | -5/Zhirov | Learned location of Command (-1) 15887 | -5/Zhirov | Zhirov requested help retrieving the SGEMP Prototype 15966 | -5/Zhirov | Found Alien Artifact 15966 | -5/Zhirov | Identified Integrated Dissipator 15966 | -5/Zhirov | Installed Integrated Dissipator, increased core heat dissipation (+20) 16094 | -5/Zhirov | Found Alien Artifact 16152 | -5/Zhirov | Entered Proximity Caves 16153 | -4/Proximity Caves | Identified exit to Factory 16224 | -4/Proximity Caves | Spotted B-86 Titan 16362 | -4/Proximity Caves | Build established: Hacker-Mutant 16617 | -4/Proximity Caves | Entered Factory 16617 | -4/Factory | Evolved 2 slots: Utility x1, Weapon x1 16876 | -4/Factory | Repaired Quantum Reactor? 16922 | -4/Factory | Build established: Hacker-Assassin 16962 | -4/Factory | Repaired Broken Lance 17020 | -4/Factory | Repaired Smartbomb Launcher 17077 | -4/Factory | Repaired Lyr. Heavy Armor Plating 17186 | -4/Factory | Repaired Enh. Biometal Leg 17328 | -4/Factory | Repaired Enh. Flexi-carbon Leg? 17526 | -4/Factory | Identified exit to Upper Caves 17526 | -4/Factory | Identified exit to Armory 17669 | -4/Factory | Entered Armory 18099 | -4/Armory | Identified Transdimensional Reconstructor 18099 | -4/Armory | Warped through subspace to slip node 18099 | -4/Armory | Discovered new exit (range 1) 18238 | -4/Armory | Fabricated Microactuators? 18512 | -4/Armory | Discovered new exit (range 21) 18539 | -4/Armory | Entered Lab 18539 | -4/Lab | Discovered new exit (range 9) 18584 | -4/Lab | Hidden lab's door opened automatically 18584 | -4/Lab | Sensor layout match revealed 18585 | -4/Lab | Gained access to the hidden lab's interior 18590 | -4/Lab | Detected by scanners 18599 | -4/Lab | Confronted by A5 18613 | -4/Lab | Destroyed A5 18630 | -4/Lab | Found Prototype Hackware 18632 | -4/Lab | Found Prototype Hackware 18636 | -4/Lab | Unable to decrypt terminal 18703 | -4/Lab | Unable to decrypt terminal 18715 | -4/Lab | Found Prototype Energy Gun 18715 | -4/Lab | Identified Tachyon Dispersion Ray 18723 | -4/Lab | Found Prototype Protection 18723 | -4/Lab | Identified Exp. Powered Armor 18767 | -4/Lab | Found Alien Artifact 18767 | -4/Lab | Identified Integrated Mediator 18767 | -4/Lab | Installed Integrated Mediator, increased core attachment efficiency. 18775 | -4/Lab | Found Alien Artifact 18775 | -4/Lab | Identified Core Expander 18775 | -4/Lab | Installed Core Expander, added new Power slot 18822 | -4/Lab | Found Prototype Hackware 18851 | -4/Lab | Found Transdimensional Reconstructor 18874 | -4/Lab | Entered Research 18874 | -3/Research | Evolved 2 slots: Utility x2 18879 | -3/Research | Identified Exp. Hacking Suite 18880 | -3/Research | Identified Exp. System Shield 18881 | -3/Research | Identified Quantum Router 19189 | -3/Research | Discovered new exit (range 23) 19462 | -3/Research | Intercept squad dispatched 19477 | -3/Research | Spotted Tracker 19477 | -3/Research | Spotted Tracker 19509 | -3/Research | Spotted Combat Programmer 19510 | -3/Research | Destroyed Tracker 19516 | -3/Research | Warped through subspace 19562 | -3/Research | Lost 9 parts (4p1n4u) 19654 | -3/Research | System corruption reached 10% 19896 | -3/Research | Lost 8 parts (1p2n4u1w) 20059 | -3/Research | Repaired Adv. Myomer Leg 20132 | -3/Research | Entered another Research area 20132 | -2/Research | Evolved 2 slots: Propulsion x1, Utility x1 20162 | -2/Research | Lost 6 parts (3p1n1u1w) 20519 | -2/Research | Identified exit to Testing 20593 | -2/Research | Intercept squad dispatched 20606 | -2/Research | Spotted Tracker 20606 | -2/Research | Spotted Tracker 20630 | -2/Research | Spotted Combat Programmer 20642 | -2/Research | System corruption reached 10% 20653 | -2/Research | Core integrity fell below 50% 20662 | -2/Research | Spotted Combat Programmer 20683 | -2/Research | Destroyed Tracker 20687 | -2/Research | Core integrity fell below 20% 20691 | -2/Research | Self-destructed Last Messages --------------- 20680_ Slammed into Tracker. 20681_ ALERT: Suspicious intruders detected, dispatching Cutter reinforcements to area. 20681_ Penetrated by EMDS Slug. 20681_ EMDS Slug penetrates Prototyping Station. 20681_ Slammed into Tracker. 20681_ Destabilizing: System corrupted (+2). 20682_ Slammed into Tracker. 20683_ Combat Programmer resets Combat Programmer, system corruption cleaned. 20683_ R-10 Processor collects Microactuators. 20683_ Combat Programmer resets Combat Programmer, system corruption cleaned. 20683_ Slammed into Tracker. 20683_ Tracker destroyed. 20685_ Penetrated by EMDS Slug. 20685_ Acquired Unknown Device. 20685_ Identified Lrn. Sensor Array. 20686_ R-10 Processor collects Field Propulsion Array. 20687_ Penetrated by EMDS Slug. Map ----- +----------------------------------------------------+ | ?????????????????????????????????????????????????? | | ????????????????????????????????????????????? | | ???????????????????????????????????????????? | | ???????????????????????????????????????????? | | ???????????????####+##?????????????????????? | | ?????????????? ??????????????????????? | | ???????????????? ??????????????????????? | | ??? ??????????? ??????????????????????? | | ?? ? ? ????????? ??????????????????????? | | ????????? ??????# #??????????????????????? | | #??#???#?????????# #??????????????????????? | | ##???##?????##???# #??????????????????????? | | #?? ? ????? ??? ?# #??????????????????????? | | #? ?????? ?????# #??????????????????????? | | # ? ??F ??? ?##### #??????????????????????? | | # ?"""?"???# # #??????????????????????? | | + """"" ## # #??????????????????????? | | # ## # u#??????????????????????? | | # ## # #??????????????????????? | | #####+######## # #??????????????????????? | | ####### # ##########?????????????? | | "" + # # ! #?????????????? | | ## #####+## # !! #?????????????? | | ## ###?# #% = #?????????????? | | ############# #??## #%p """ ?#?????????????? | | ################### @#p """ #?????????????? | | #### s """" +?????????????? | | #??# # """" # ????????????? | | #?## ; # ???????????? | | #?## # +? ??????????? | | ####+###+############??##?????????? | | """"T"""" ### ? ????????????????????????? | | """"""""""" ### ????????????????????????? | | ################## """""""??????????????????????? | | ############## """"""???????????????????????? | | ? """""?"??????????????????????? | | ######### ???????????????????????? | | ###+########## ? ? ?????????????????????? | | # ## """"""???????????????????????? | | # ## """???"??????????????????????? | | # ## ""??"?"??????????????????????? | | # ## ? ? ? ????????????????????? | | # ## ?? ????????????????????????? | | ^^^ #################?###????????????????????????? | | ^^ # ###??#####??????????????????????? | | # ####?#?##?#?????????????????????? | | # ###?#?###???????????????????????? | | # #########???????????????????????? | | + ###?####### ???????????????????? | | # | #######???? ???????????????????? | +----------------------------------------------------+ Best States ------------- Heat Dissipation 69 Energy Generation 80 Energy Capacity 1175 Matter Stores 1800 Matter Capacity 1800 Sight Range 16 Robot Scan Range 18 Terrain Scan Range 24 Terrain Scan Density 210 Jamming Range 12 Power Amplification 40 Additional Mass Support 12 Armor Coverage 1600 Resistance: KI 30 Resistance: EM 90 Utility Shielding 66 Weapon Shielding 66 Melee Speed Boost 40 Phase Shifting 20 Evasion (%) 75 Melee Accuracy 8 Target Analysis 8 Armor Integrity Analysis 20 Recoil Reduction 2 Offensive Hacking 36 Defensive Hacking 41 Authchip Count 4 Item Schematics ----------------- Imp. Propulsion Shielding | -8/Materials | Scanalyzed Lrg. Storage Unit | -8/Materials | Scanalyzed Disposable Heat Sink | -8/Materials | Extracted Reclamation Unit | -8/Materials | Extracted Great Maul | -8/Materials | Extracted Ion Cannon | -8/Materials | Extracted Com. Matter Pod | -8/Materials | Extracted Sensor Array | -8/Materials | Extracted Hvy. Armor Plating | -7/Factory | Scanalyzed Imp. Light Armor Plating | -7/Factory | Scanalyzed Combat Drone Bay | -7/Data Miner | Free Lgt. Regenerative Plating | -7/Data Miner | Free Cld. Aerolev Unit | -7/Data Miner | Free Gravity Neutralizing Apparatus | -7/Data Miner | Free Imp. Heavy Machine Gun | -7/Data Miner | Free Gyrokinetic Inverter | -7/Data Miner | Free Imp. Coolant Injector | -7/Data Miner | Free Adv. Plasma Cannon | -7/Data Miner | Free Imp. Kinecellerator | -7/Data Miner | Free Mass Driver | -7/Data Miner | Free HERF Cannon | -7/Data Miner | Free Adv. Armor Integrity Analyzer | -6/Hub_04(d) | Hacked Adv. Actuator Array | -5/Factory | Hacked Microactuators | -5/Factory | Hacked Adv. Melee Analysis Suite | -5/Factory | Hacked Adv. Sensor Array | -5/Factory | Hacked Assault Drone Bay | -5/Zhirov | Free Exp. Heat Sink | -5/Zhirov | Free Exp. Optical Array | -5/Zhirov | Free Imp. Arc Thrower | -5/Zhirov | Free Centrium Medium Armor Plating | -3/Research | Scanalyzed Imp. Weapon Shielding | -3/Research | Scanalyzed Robot Schematics ------------------ B-48 Gladiator | -7/Data Miner | Free G-50 Soldier | -7/Data Miner | Free R-10 Processor | -7/Data Miner | Free S-27 Virus | -7/Data Miner | Free X-62 Marksman | -7/Data Miner | Free B-60 Warrior | -7/Data Miner | Free Fabricated ------------ HERF Cannon | x1 | -6/Factory | Authchip Microactuators | x2 | -4/Armory Alien Tech Used ----------------- Integrated Dissipator Transdimensional Reconstructor Integrated Mediator Core Expander Achievements -------------- None Challenges ------------ None Game ------ Seed AntimatterAssaultFrame Manual? 0 Play Time 04:31:34 Cumulative 405.3 hours Start 2021.10.23 @ 23:00:01 End 2021.10.25 @ 01:41:45 Sessions 15 Manual Loads 0 Difficulty Rogue Special Mode None Game No. 407 Rogue 407 Adventurer 0 Explorer 0 Win Type - Total 7 Types 6/0/0/1/0/0/0/0/0 Lore% 79 Gallery% 91 Achievement% 69 Wizard Run 0 Options --------- ASCII 0 Keyboard 0 Movement Mouse Keybinds 1 Fullscreen 2 Font 24/Smallcaps Map View 76x50 Tactical HUD 1 Map Filters NONE Filters NONE Steam 1 RUN: b9a7ecf2-4f81-4281-9056-f2d6c7e19e66